Cogmind - Beta 14 @@@ ROGUE MODE // 2024.11.11 @ 21:32:37 Player: MarKhan Result: Destroyed by G-34 Mercenary with Small Laser Performance ------------- Evolutions (0) 0 Regions Visited (2) 400 Robots Destroyed (24) 120 Value Destroyed (380) 380 Prototype IDs (3) 60 Alien Tech Used (0) 0 Bonus (-13) -13 TOTAL SCORE: 947 Bonus ------- Friendly Fire -13 Cogmind --------- Core Integrity 0/250 Matter 300/300 Energy 99/100 System Corruption 0% Temperature Cool (6) Movement Core (50) Location -10/Mines Parts ------- > --- POWER (1) -------- (None) > --- PROPULSION (2) --- (None) > --- UTILITY (2) ------ Visual Processing Unit > --- WEAPON (2) ------- Mining Claw > --- INVENTORY (5) ---- Weight Redist. System Rocket Launcher Rocket Launcher Rocket Launcher Datajack Peak State ------------ > --- POWER ------------ (None) > --- PROPULSION ------- (None) > --- UTILITY ---------- Visual Processing Unit Seismic Detector > --- WEAPON ----------- Improved EM Shotgun Medium Laser > --- INVENTORY -------- Light Ion Engine Improved Terrain Scanner Grenade Launcher Grenade Launcher Datajack [Rating: 7] Favorites ----------- Power None Propulsion None Utility Seismic Detector Device Seismic Detector Processor Signal Interpreter Weapon Medium Laser Energy Gun Medium Laser Ballistic Gun Light Assault Rifle Launcher Grenade Launcher Slashing Weapon Mining Claw Special Melee Weapon Datajack Build | -11 -10 -10 ------- Run | Yrd Mat Min Slots Evolved . | . . . Power . | . . . Propulsion . | . . . Utility . | . . . Weapon . | . . . Parts Attached 15 | 3 12 . Power . | . . . Engine . | . . . Core . | . . . Reactor . | . . . Propulsion . | . . . Treads . | . . . Leg . | . . . Wheel . | . . . Hover . | . . . Flight . | . . . Utility 4 | 1 3 . Device 2 | 1 1 . Storage . | . . . Processor 2 | . 2 . Hackware . | . . . Protection . | . . . Artifact . | . . . Weapon 11 | 2 9 . Energy Gun 7 | 1 6 . Energy Cannon . | . . . Ballistic Gun 1 | 1 . . Ballistic Cannon . | . . . Launcher 1 | . 1 . Special Weapon . | . . . Impact Weapon . | . . . Slashing Weapon 1 | . 1 . Piercing Weapon . | . . . Special Melee Weapon 1 | . 1 . Unidentified Prototypes 1 | . 1 . Parts Lost 1 | . . 1 Power . | . . . Propulsion . | . . . Utility 1 | . . 1 Weapon . | . . . Highest Loss Streak 1 | . . 1 To Critical Strikes . | . . . Average Slot Usage (%) 41 | . 42 28 Device 13 | . 14 . Processor 13 | . 13 14 Energy Gun 9 | . 9 . Slashing Weapon 4 | . 4 14 Peak Build Rating 7 | 3 7 4 Average Rating 3 | 1 3 3 On Entrance 2 | . 2 4 Naked Turns . | . . . Heaviest Build 6 | 4 6 3 Greatest Support 3 | 3 3 3 Greatest Overweight (x) 1 | 1 1 . Average Overweight (x) . | . . . Largest Inventory Capacity 5 | 5 5 5 Average Capacity 5 | 5 5 5 Most Carried 5 | 4 5 5 Average Carried 4 | 2 4 5 Final Capacity 5 | 5 5 5 Final Carried 5 | 4 5 5 Class Distribution -------------------- 100% | Mutant Dominant Class ---------------- Mutant | -10/Materials Mutant | -10/Mines Resources | -11 -10 -10 ----------- Run | Yrd Mat Min Matter Collected 377 | 237 140 . Remotely . | . . . Salvage Created 604 | 92 512 . Parts 43 | 3 40 . Haulers Intercepted 2 | . 2 . Recyclers Shooed . | . . . Parts Field Recycled . | . . . Retrieved Matter . | . . . Parts Self-Destructed . | . . . Prevented . | . . . Kills | -11 -10 -10 ------- Run | Yrd Mat Min Combat Hostiles Destroyed 15 | . 15 . Melee 2 | . 2 . Guns 11 | . 11 . AOE 2 | . 2 . Classes Destroyed 8 | 2 6 . Worker 1 | . 1 . Tunneler 2 | 1 1 . Hauler 2 | . 2 . Recycler 1 | 1 . . Operator 1 | . 1 . Watcher 2 | . 2 . Swarmer 9 | . 9 . Grunt 6 | . 6 . Best Kill Streak 5 | 2 5 . Combat Bots Only 3 | . 3 . Max Kills in Single Turn 1 | 1 1 . Gunslinging . | . . . Exploded 1 | . 1 . Melee 1 | . 1 . Uniques/NPCs Destroyed . | . . . Combat | -11 -10 -10 -------- Run | Yrd Mat Min Hostile Shots Fired 55 | . 46 9 Missed 13 | . 11 2 Damage Taken 416 | . 330 86 Core 259 | . 189 70 Absorbed by Shields . | . . . Regen/Repaired (Parts) 32 | . 32 . Core Remaining (%) 100 | 100 . . Volleys Fired 68 | 7 61 . Largest 2 | 2 2 . Hottest 100 | 70 100 . Shots Fired 78 | 14 64 . Gun 76 | 14 62 . Cannon . | . . . Launcher 2 | . 2 . Special . | . . . Kinetic 7 | 7 . . Thermal 69 | 7 62 . Explosive 2 | . 2 . Electromagnetic . | . . . Robot Hit Streak 11 | 4 11 . Robot Miss Streak 4 | 2 4 . Penetration Max . | . . . Secondary Targets . | . . . Shots Hit Robots 60 | 9 51 . Core Hits 33 | 4 29 . Critical Kills . | . . . Critical Parts Destroyed . | . . . Critical Strikes 6 | 1 5 . Burn 6 | 1 5 . Melee Attacks 23 | . 23 . Impact . | . . . Slashing 23 | . 23 . Piercing . | . . . Sneak Attacks 2 | . 2 . Combat Hostiles . | . . . Follow-up Attacks . | . . . Damage Inflicted 1030 | 92 938 . Guns 566 | 92 474 . Cannons . | . . . Explosions 116 | . 116 . Melee 348 | . 348 . Ramming . | . . . Kinetic 29 | 29 . . Thermal 537 | 63 474 . Explosive 116 | . 116 . Electromagnetic . | . . . Impact . | . . . Slashing 348 | . 348 . Piercing . | . . . Highest Corruption . | . . . Average Corruption . | . . . Corruption Purged . | . . . Corruption Blocked . | . . . Overload Shots . | . . . Overflow Damage 16 | . 16 . Projectiles . | . . . Explosions . | . . . Melee 16 | . 16 . Knockbacks . | . . . Impact . | . . . Kinetic . | . . . Secondary . | . . . Self-Inflicted Damage . | . . . Shots . | . . . Rammed . | . . . Targets Rammed . | . . . Kicked . | . . . Crushed . | . . . Highest Temperature 40 | 40 40 . Average Temperature 22 | 19 23 . Received Heat Transfer 114 | . 66 48 Siege Activations . | . . . Robots Corrupted . | . . . Combat Hostiles . | . . . Parts Fried . | . . . Impact Corruptions . | . . . Robots Melted . | . . . Combat Hostiles . | . . . Parts Melted 5 | . 5 . Heat Transferred 2035 | 259 1776 . Parts Sabotaged . | . . . Parts Stolen . | . . . Parts Stripped . | . . . Power Chain Reactions . | . . . Alert | -11 -10 -10 ------- Run | Yrd Mat Min Peak Influence 373 | 10 373 97 Initial 97 | . 6 97 Average 228 | 4 242 87 Maximum Alert Level 1 | . 1 . Low Security (%) 34 | 100 29 100 Level 1 65 | . 70 . Level 2 . | . . . Level 3 . | . . . Level 4 . | . . . Level 5 . | . . . High Security . | . . . Max Security . | . . . Squads Dispatched 5 | . 4 1 Investigation 4 | . 3 1 Extermination . | . . . Reinforcement 1 | . 1 . Assault . | . . . Garrison . | . . . Intercept . | . . . Searches Triggered . | . . . Construction Impeded . | . . . Haulers Reinforced . | . . . Active Scanning Responses . | . . . Cargo Convoy Interrupts . | . . . Stealth | -11 -10 -10 --------- Run | Yrd Mat Min Distress Signals 2 | . 2 . Communications Jammed . | . . . Distress Signals . | . . . Times Spotted 33 | . 29 4 Peak Tracking Total 5 | . 5 3 Tactical Retreats 2 | . 2 . Traps | -11 -10 -10 ------- Run | Yrd Mat Min Traps Triggered 2 | . 2 . Indirectly . | . . . Trap Hack Attempts . | . . . Triggered . | . . . Disarmed . | . . . Reprogrammed . | . . . Reused . | . . . Traps Extracted . | . . . Installed . | . . . Triggered . | . . . Machines | -11 -10 -10 ---------- Run | Yrd Mat Min Machines Disabled . | . . . Max in Single Turn . | . . . Machines Repaired . | . . . Machines Dismantled . | . . . Machines Sabotaged . | . . . Overloaded Fab Kills . | . . . Hacking | -11 -10 -10 --------- Run | Yrd Mat Min Machines Accessed 10 | . 9 1 Terminals 6 | . 6 . Fabricators . | . . . Repair Stations 1 | . 1 . Recycling Units 2 | . 2 . Scanalyzers . | . . . Garrison Access . | . . . Total Hacks 35 | . 34 1 Successful 27 | . 26 1 Failed 8 | . 8 . Catastrophic 1 | . 1 . Database Lockouts . | . . . Manual 22 | . 22 . Terminals 27 | . 27 . Fabricators . | . . . Repair Stations 2 | . 2 . Recycling Units 5 | . 5 . Scanalyzers . | . . . Garrison Access . | . . . Terminal Hacks 7 | . 6 1 Robot Analysis 2 | . 2 . Prototype ID Bank 1 | . 1 . Open Door 1 | . . 1 Emergency Access Points 1 | . 1 . Surveillance Status 1 | . 1 . Recall Investigation 1 | . 1 . Fabricator Hacks . | . . . Repair Station Hacks 2 | . 2 . Scan Component 1 | . 1 . Repair 1 | . 1 . Recycling Unit Hacks 2 | . 2 . Retrieve Components 2 | . 2 . Scanalyzer . | . . . Garrison Access Hacks . | . . . Unauthorized Hacks 16 | . 16 . Terminals 13 | . 13 . Assimilate 3 | . 3 . Botnet 3 | . 3 . Operators 1 | . 1 . Skim 6 | . 6 . Fabricators . | . . . Repair Stations . | . . . Recycling Units 3 | . 3 . Recyclers 1 | . 1 . Tunnel 2 | . 2 . Scanalyzers . | . . . Garrison Access . | . . . Data Cores Recovered . | . . . Used . | . . . Hacking Detections 6 | . 6 . Full Trace Events 2 | . 2 . Feedback Events . | . . . Feedback Blocked . | . . . Robot Schematics Acquired . | . . . Robots Built . | . . . Authchips . | . . . Time . | . . . Total Robot Build Rating . | . . . Part Schematics Acquired . | . . . Parts Built . | . . . Authchips . | . . . Time . | . . . Total Part Build Rating . | . . . Parts Repaired 1 | . 1 . Time 26 | . 26 . Parts Recycled . | . . . Recycled Matter . | . . . Retrieved Matter . | . . . Retrieved Components 11 | . 11 . Parts Scanalyzed . | . . . Part Schematics Acquired . | . . . Parts Damaged . | . . . Bothacking | -11 -10 -10 ------------ Run | Yrd Mat Min Used RIF Installer . | . . . Robots Hacked . | . . . Non-combat . | . . . Combat . | . . . Robot Hacks Applied . | . . . Relay Couplers Released . | . . . Fabnet Peak Effective % . | . . . Robots Rewired . | . . . Allies Hacked . | . . . Hacks Repelled . | . . . Allies | -11 -10 -10 -------- Run | Yrd Mat Min Total Allies 1 | . 1 . Largest Group 1 | . 1 1 Highest-Rated Group 10 | . 10 10 Highest-Rated Ally 10 | . 10 10 Total Orders 6 | . 6 . STAY 3 | . 3 . FOLLOW 3 | . 3 . Ally Attacks . | . . . Total Damage . | . . . Kills . | . . . Allies Corrupted . | . . . Allies Melted . | . . . Intel | -11 -10 -10 ------- Run | Yrd Mat Min Robot Analysis Total 2 | . 2 . Derelict Logs Recovered . | . . . Drone Launches . | . . . Drone Recoveries . | . . . Exploration | -11 -10 -10 ------------- Run | Yrd Mat Min Turns Passed 1330 | 57 1238 35 Spaces Moved 1398 | 53 1287 58 Core 1398 | 53 1287 58 Treads . | . . . Legs . | . . . Wheels . | . . . Hover . | . . . Flight . | . . . Fastest Speed 50 | 50 50 50 Average Speed 50 | 51 50 50 Slowest Speed 100 | 100 100 50 Overloaded Moves . | . . . Propulsion Burnouts . | . . . Robots Hopped . | . . . Cave-ins Triggered . | . . . Exploration Rate (%) 38 | 3 98 13 Regions Visited 2 Branch Regions 1 Pre-discovered Areas 2 | . 2 . Known Exits Taken 1 | . 1 . Unknown Exits Taken 1 | 1 . . Scrap Searched . | . . . Spaces Dug 4 | . 4 . Terrain Destroyed 20 | . 20 . Melee 4 | . 4 . Projectile . | . . . AOE 16 | . 16 . Terrain Rammed . | . . . Walls Destroyed . | . . . Machines Disabled . | . . . Actions | -11 -10 -10 --------- Run | Yrd Mat Min Total 1900 | 68 1768 64 Wait 371 | . 365 6 Move 1396 | 52 1286 58 Hop . | . . . Pick Up 12 | 4 8 . Fast Attach 12 | 3 9 . Attach 2 | . 2 . Detach 4 | 1 3 . Swap 1 | . 1 . Drop 11 | 1 10 . Fire 68 | 7 61 . Melee 23 | . 23 . Ram . | . . . Kick . | . . . Crush . | . . . Escape Stasis . | . . . Rewire . | . . . Trap . | . . . Miscellaneous . | . . . Route ------- -11/Scrapyard -10/Materials (discovered 6 exits: *Mat x3 / *Min x2 / [*Sub]) -10/Mines History --------- Turn | Location | Event 19 | -11/Scrapyard | Discovered new exit (range 14) 58 | -11/Scrapyard | Entered Materials 112 | -10/Materials | Discovered new exit (range 15) 112 | -10/Materials | Discovered new exit (range 11) 118 | -10/Materials | Identified exit to Materials 212 | -10/Materials | Identified exit to Mines 227 | -10/Materials | Discovered exit to Materials (range 13) 284 | -10/Materials | Discovered exit to Materials (range 15) 308 | -10/Materials | Build established: Mutant 681 | -10/Materials | Core integrity fell below 50% 800 | -10/Materials | Discovered exit to Mines (range 11) 835 | -10/Materials | Repaired Grenade Launcher 951 | -10/Materials | Discovered new exit (range 13) 1296 | -10/Materials | Entered Mines 1296 | -10/Mines | Accompanied by 1 ally 1299 | -10/Mines | Core integrity fell below 20% 1301 | -10/Mines | Met a Derelict shopkeep closing up shop 1301 | -10/Mines | Met a Derelict bent on vengeance 1331 | -10/Mines | Destroyed by G-34 Mercenary with Small Laser Last Messages --------------- Skimming routine engaged. Thanks from A0-MCA. 01214_ ALERT: Suspicious activity at Terminal M007. Dispatching Investigation squad. 01251_ K-01 Serf cleans the Processing Tank. 01266_ Connecting with Terminal... LOCATION=MINES GOAL=ESCAPE Something is scanning the area. 01297_ Technician 1a reports 0b10 security level has lowered to 0. 01297_ Seismic Detector destroyed. 01300_ Connecting with SHOP.Sys... >>Open Door Sealed Doors opened. 01301_ QH-3GN(g): "Sorry, the Unaware have moved into these parts and I'm closing up shop. No more sales from me!" 01303_ ALERT: Derelict activity detected in mines. Dispatching investigation squad. Map ----- +----------------------------------------------------+ | ?????????????????????????????????? | | ?????????????????????????????????? | | ?????????????????????????????????? | | ?????????????????????????????????? | | ?????????????????????????????????? | | ?????????????????????????????????? | | ?????????????????????????????????? | | ?????????????????????????????????? | | ?????????????????????????????????? | | ?????????????????????????????????? | | ?????????????????????????????????? | | ?????????????????????????????????? | | ???????????????????#####?????????? | | ???????????????????# ??????????? | | ???????????????????# ???????????? | | ######?????????????# #???????????? | | """""#????########## #???????????? | | =]![*?????# #???????????? | | #?????# ######## #???????????? | | [ =###???# #?????## #???????????? | | # ## ##??# #????## #######?????? | | X #### #???## ogg ##????? | | #??## #????? | | #####?## #????? | | ##????## g #????? | | ########?????# @ ##????? | | ###??????????# ##?????? | | ##?????????# ### ##??????? | | #?????????## ##?####???????? | | #????????## ##?????????????? | | #????????####??????????????? | | #######??????????????????????????? | | ?????????????????????????????????? | | ?????????????????????????????????? | | ?????????????????????????????????? | | ?????????????????????????????????? | | | | | | | | | | | | | | | | | | | | | | | | | | | | | +----------------------------------------------------+ Best States ------------- Heat Dissipation 25 Energy Generation 5 Energy Capacity 100 Matter Stores 300 Matter Capacity 300 Sight Range 18 Terrain Scan Density 10 Evasion (%) 50 Item Schematics ----------------- None Robot Schematics ------------------ None Fabricated ------------ Nothing Alien Tech Used ----------------- None Achievements -------------- None Challenges ------------ None Game ------ Seed PortableSurgeInterpreter Manual? 0 Play Time 00:17:16 Cumulative 92.5 hours Start 2024.11.11 @ 21:14:45 End 2024.11.11 @ 21:32:37 Sessions 1 Manual Loads 0 Difficulty Rogue Special Mode None Game No. 89 Rogue 89 Adventurer 0 Explorer 0 Win Type - Total 2 Types 2/0/0/0/0/0/0/0/0 Lore% 50 Gallery% 51 Achievement% 43 Wizard Run 0 Options --------- Layout 1 ASCII 0 Keyboard 1 Movement Arrows Keybinds 0 Fullscreen 2 Font 24/Smallcaps Map View 50x35 Zoom Use 0% Tactical HUD 1 Map Filters NONE Filters NONE Steam 1 RUN: 626081e9-2105-4e58-8dc2-0b67c8e7b932